fUST/lending_fUST_20240728
["ID","MTS","AMOUNT","RATE_DAILY","PERIOD"]
[333464204,1722156642015,-500.0,0.00013971,2]
[333464205,1722156642027,-151.0,0.00013971,2]
[333464206,1722156642039,-207.123495,0.00013971,2]
[333464207,1722156642050,-207.123495,0.00013971,2]
[333464208,1722156642061,-596.89352661,0.00013972,2]
[333464209,1722156642072,-500.0,0.00013972,2]
[333464210,1722156642083,-553.86,0.00013972,2]
[333464211,1722156642093,-500.0,0.00013972,2]
[333464212,1722156642102,-646.49,0.00013972,2]
[333464213,1722156642111,-500.0,0.00013972,2]
[333464214,1722156642122,-500.0,0.00013972,2]
[333464215,1722156642131,-500.0,0.00013972,2]
[333464216,1722156642141,-500.0,0.00013972,2]
[333464217,1722156642150,-601.51393378,0.00013972,2]
[333464218,1722156642160,-500.0,0.00013972,2]
[333464219,1722156642170,-569.59091912,0.00013972,2]
[333464220,1722156642180,-151.0,0.00013972,2]
[333464221,1722156642190,-500.0,0.00013972,2]
[333464222,1722156642201,-500.0,0.00013972,2]
[333464223,1722156642212,-500.0,0.00013972,2]
[333464224,1722156642222,-500.0,0.00013972,2]
[333464225,1722156642232,-401.528253,0.00013972,2]
[333464226,1722156642244,-500.0,0.00013972,2]
[333464227,1722156642253,-500.0,0.00013972,2]
[333464228,1722156642263,-500.0,0.00013972,2]
[333464229,1722156642273,-500.0,0.00013972,2]
[333464230,1722156642282,-500.0,0.00013972,2]
[333464231,1722156642291,-151.0,0.00013972,2]
[333464232,1722156642301,-151.0,0.00013972,2]
[333464233,1722156642310,-151.0,0.00013972,2]
[333464234,1722156642320,-151.0,0.00013972,2]
[333464235,1722156642330,-500.0,0.00013972,2]
[333464236,1722156642340,-500.0,0.00013972,2]
[333464238,1722156642349,-500.0,0.00013972,2]
[333464239,1722156642359,-500.0,0.00013972,2]
[333464240,1722156642368,-500.0,0.00013972,2]
[333464241,1722156642378,-500.0,0.00013972,2]
[333464242,1722156642388,-907.92,0.00013972,2]
[333464243,1722156642398,-474.50572378,0.00013972,2]
[333464244,1722156642408,-548.24,0.00013972,2]
[333464245,1722156642418,-500.0,0.00013972,2]
[333464246,1722156642428,-860.79,0.00013972,2]
[333464247,1722156642437,-500.0,0.00013972,2]
[333464248,1722156642448,-2562.86,0.00013972,2]
[333464249,1722156642458,-500.0,0.00013972,2]
[333464250,1722156642467,-500.0,0.00013972,2]
[333464251,1722156642477,-860.73,0.00013972,2]
[333464252,1722156642487,-500.0,0.00013972,2]
[333464253,1722156642497,-500.0,0.00013972,2]
[333464254,1722156642507,-500.0,0.00013972,2]
[333464256,1722156642516,-643.63,0.00013972,2]
[333464258,1722156642526,-500.0,0.00013972,2]
[333464259,1722156642536,-500.0,0.00013972,2]
[333464260,1722156642546,-500.0,0.00013972,2]
[333464261,1722156642556,-500.0,0.00013972,2]
[333464262,1722156642567,-500.0,0.00013972,2]
[333464263,1722156642579,-500.0,0.00013972,2]
[333464264,1722156642589,-500.0,0.00013972,2]
[333464265,1722156642603,-500.0,0.00013972,2]
[333464266,1722156642615,-500.0,0.00013972,2]
[333464268,1722156642627,-500.0,0.00013972,2]
[333464269,1722156642639,-500.0,0.00013972,2]
[333464270,1722156642651,-885.5,0.00013972,2]
[333464271,1722156642660,-500.0,0.00013972,2]
[333464272,1722156642671,-560.42,0.00013972,2]
[333464274,1722156642682,-500.0,0.00013972,2]
[333464275,1722156642692,-500.0,0.00013972,2]
[333464276,1722156642703,-500.0,0.00013972,2]
[333464277,1722156642714,-500.0,0.00013972,2]
[333464278,1722156642725,-500.0,0.00013972,2]
[333464279,1722156642735,-151.0,0.00013972,2]
[333464280,1722156642746,-500.0,0.00013972,2]
[333464281,1722156642757,-500.0,0.00013972,2]
[333464282,1722156642768,-500.0,0.00013972,2]
[333464283,1722156642777,-500.0,0.00013972,2]
[333464285,1722156642787,-500.0,0.00013972,2]
[333464286,1722156642797,-1978.6,0.00013972,2]
[333464287,1722156642809,-500.0,0.00013972,2]
[333464288,1722156642818,-3549.43,0.00013972,2]
[333464289,1722156642827,-500.0,0.00013972,2]
[333464290,1722156642837,-500.0,0.00013972,2]
[333464292,1722156642847,-793.88,0.00013972,2]
[333464293,1722156642857,-500.0,0.00013972,2]
[333464294,1722156642867,-151.0,0.00013972,2]
[333464295,1722156642878,-500.0,0.00013972,2]
[333464296,1722156642887,-500.0,0.00013972,2]
[333464297,1722156642897,-151.0,0.00013972,2]
[333464298,1722156642908,-500.0,0.00013972,2]
[333464299,1722156642919,-500.0,0.00013972,2]
[333464300,1722156642930,-514.21,0.00013972,2]
[333464301,1722156642941,-500.0,0.00013972,2]
[333464302,1722156642951,-1369.63,0.00013972,2]
[333464303,1722156642961,-500.0,0.00013972,2]
[333464304,1722156642971,-500.0,0.00013972,2]
[333464305,1722156642981,-500.0,0.00013972,2]
[333464306,1722156642990,-182.270265,0.00013972,2]
[333464307,1722156643000,-182.270265,0.00013972,2]
[333464308,1722156643010,-500.0,0.00013972,2]
[333464309,1722156643020,-655.16,0.00013972,2]
[333464310,1722156643029,-500.0,0.00013972,2]
[333464311,1722156643039,-500.0,0.00013972,2]
[333464312,1722156643050,-500.0,0.00013972,2]
[333464313,1722156643061,-500.0,0.00013972,2]
[333464314,1722156643071,-500.0,0.00013972,2]
[333464315,1722156643080,-151.0,0.00013972,2]
[333464316,1722156643091,-1828.64,0.00013972,2]
[333464317,1722156643101,-500.0,0.00013972,2]
[333464318,1722156643111,-500.0,0.00013972,2]
[333464319,1722156643120,-966.61,0.00013972,2]
[333464320,1722156643130,-151.0,0.00013972,2]
[333464321,1722156643140,-207.123495,0.00013972,2]
[333464322,1722156643150,-500.0,0.00013972,2]
[333464323,1722156643159,-692.35,0.00013972,2]
[333464324,1722156643169,-500.0,0.00013972,2]
[333464325,1722156643179,-207.123495,0.00013972,2]
[333464326,1722156643189,-218.4487624,0.00014093,2]
[333464327,1722156643199,-500.0,0.00014235,2]
[333464328,1722156643209,-194.46725522,0.00014236,2]
[333464329,1722156643219,-151.0,0.00014236,2]
[333464330,1722156643228,-500.0,0.00014245,2]
[333464331,1722156643238,-500.0,0.00014246,2]
[333464332,1722156643248,-500.0,0.00014246,2]
[333464333,1722156643258,-151.0,0.00014246,2]
[333464334,1722156643268,-500.0,0.00014246,2]
[333464335,1722156643279,-500.0,0.00014246,2]
[333464336,1722156643289,-500.0,0.00014246,2]
[333464337,1722156643300,-500.0,0.00014246,2]
[333464338,1722156643310,-151.0,0.00014246,2]
[333464339,1722156643321,-500.0,0.00014246,2]
[333464340,1722156643331,-500.0,0.00014246,2]
[333464341,1722156643341,-248.82,0.00014246,2]
[333464342,1722156643350,-207.14011479,0.00014246,2]
[333464343,1722156643360,-500.0,0.00014246,2]
[333464344,1722156643369,-229.2767093,0.00014246,2]
[333464345,1722156643379,-500.0,0.00014246,2]
[333464346,1722156643389,-500.0,0.00014246,2]
[333464347,1722156643399,-151.0,0.00014246,2]
[333464348,1722156643411,-151.0,0.00014246,2]
[333464349,1722156643421,-151.0,0.00014246,2]
[333464350,1722156643431,-151.0,0.00014246,2]
[333464351,1722156643441,-500.0,0.00014246,2]
[333464352,1722156643451,-155.10583273,0.00014246,2]
[333464353,1722156643462,-500.0,0.00014246,2]
[333464354,1722156643471,-500.0,0.00014246,2]
[333464355,1722156643480,-500.0,0.00014246,2]
[333464356,1722156643490,-907.92,0.00014246,2]
[333464357,1722156643500,-551.42274358,0.00014246,2]
[333464358,1722156643509,-860.79,0.00014246,2]
[333464359,1722156643520,-500.0,0.00014246,2]
[333464360,1722156643531,-2562.86,0.00014246,2]
[333464361,1722156643542,-500.0,0.00014246,2]
[333464362,1722156643554,-500.0,0.00014246,2]
[333464363,1722156643565,-860.73,0.00014246,2]
[333464364,1722156643577,-500.0,0.00014246,2]
[333464365,1722156643588,-500.0,0.00014246,2]
[333464366,1722156643601,-500.0,0.00014246,2]
[333464367,1722156643611,-643.63,0.00014246,2]
[333464368,1722156643620,-500.0,0.00014246,2]
[333464369,1722156643629,-500.0,0.00014246,2]
[333464370,1722156643639,-500.0,0.00014246,2]
[333464371,1722156643648,-310.91193684,0.00014246,2]
[333464372,1722156643659,-500.0,0.00014246,2]
[333464373,1722156643670,-500.0,0.00014246,2]
[333464374,1722156643679,-500.0,0.00014246,2]
[333464375,1722156643690,-885.5,0.00014246,2]
[333464376,1722156643699,-500.0,0.00014246,2]
[333464377,1722156643711,-560.42,0.00014246,2]
[333464378,1722156643723,-500.0,0.00014246,2]
[333464379,1722156643733,-500.0,0.00014246,2]
[333464380,1722156643743,-500.0,0.00014246,2]
[333464381,1722156643753,-500.0,0.00014246,2]
[333464382,1722156643765,-81.4852011,0.00014246,2]
[333464383,1722156643801,254.14,0.00010959,2]
[333464393,1722157634209,-300.0,0.00010958,2]
[333464394,1722157634232,-567.21780434,0.00010959,2]
[333464395,1722157636145,-765.46396401,0.00010959,2]
[333464396,1722157648091,-248.776097,0.00010959,2]
[333464397,1722157747113,-300.0,0.00010958,2]
[333464398,1722157747148,-44.29542329,0.00010959,2]
[333464399,1722157747175,-1303.90352604,0.00010959,2]
[333464400,1722157747197,-981.56131075,0.00010959,2]
[333464401,1722157747221,-223.36180605,0.00010959,2]
[333464402,1722157747245,-156.59429784,0.00010959,2]
[333464403,1722157747270,-24900.0,0.00011124,2]
[333464404,1722157747297,-166.666666,0.00011272,2]
[333464405,1722157747322,-170.428253,0.00011522,2]
[333464406,1722157747344,-166.666666,0.0001158,2]
[333464407,1722157747368,-170.428253,0.00011622,2]
[333464408,1722157747392,-170.428253,0.00011722,2]
[333464409,1722157747416,-170.428253,0.00011822,2]
[333464410,1722157747442,-166.666666,0.00011887,2]
[333464411,1722157747468,-170.428253,0.00011922,2]
[333464412,1722157747491,-170.428253,0.00012022,2]
[333464413,1722157747513,-420.0,0.00012054,2]
[333464414,1722157747536,-170.428253,0.00012122,2]
[333464415,1722157747558,-166.666666,0.00012194,2]
[333464416,1722157747578,-146.64471215,0.00012502,2]
[333464420,1722157766134,273.70396931,9.999e-05,2]
[333464478,1722157832192,-20.02195385,0.00012502,2]
[333464480,1722157832201,-166.666666,0.00012809,2]
[333464482,1722157832211,-1266.05390087,0.000134,2]
[333464485,1722157832223,-2407.12880654,0.000134,2]
[333464488,1722157832243,-1099.01774581,0.000134,2]
[333464495,1722157832304,-729.38844373,0.000134,2]
[333464498,1722157832319,-1228.25778401,0.000134,2]
[333464500,1722157832328,-201.182579,0.00013425,2]
[333464502,1722157832338,-300.0,0.00013469,2]
[333464504,1722157832348,-28910.0637829,0.0001347,2]
[333464506,1722157832359,-98970.810975,0.0001348,2]
[333464508,1722157832368,-150.112233,0.000135,2]
[333464510,1722157832377,-3070.98499587,0.00013587,2]
[333464512,1722157832388,-1518.48172937,0.00013587,2]
[333464766,1722157838141,-2001.79,0.000136,2]
[333464767,1722157838151,-6612.77,0.00013688,2]
[333464776,1722157840204,-80117.4213486,0.00013688,2]
[333464777,1722157840221,-500.0,0.00013698,2]
[333464778,1722157840231,-500.0,0.00013698,2]
[333464779,1722157840244,-500.0,0.00013698,2]
[333464780,1722157840255,-500.0,0.00013698,2]
[333464781,1722157840266,-500.0,0.00013698,2]
[333464782,1722157840277,-500.0,0.00013698,2]
[333464783,1722157840288,-500.0,0.00013698,2]
[333464784,1722157840299,-500.0,0.00013698,2]
[333464785,1722157840310,-500.0,0.00013698,2]
[333464786,1722157840323,-266.095325,0.00013698,2]
[333464787,1722157840334,-500.0,0.00013698,2]
[333464788,1722157840346,-500.0,0.00013698,2]
[333464789,1722157840358,-500.0,0.00013698,2]
[333464790,1722157840369,-500.0,0.00013698,2]
[333464791,1722157840507,-502.46805735,0.00013698,2]
[333464792,1722157840549,-254.03992776,0.00013698,2]
[333464793,1722157840560,-500.0,0.00013698,2]
[333464794,1722157840570,-576.76107088,0.00013698,2]
[333464795,1722157840581,-500.0,0.00013698,2]
[333464796,1722157840590,-500.0,0.00013698,2]
[333464797,1722157840601,-150.34,0.00013698,2]
[333464798,1722157840611,-500.0,0.00013698,2]
[333464799,1722157840622,-500.0,0.00013698,2]
[333464800,1722157840633,-211.490601,0.00013698,2]
[333464801,1722157840644,-500.0,0.00013698,2]
[333464802,1722157840656,-504.79220923,0.00013698,2]
[333464803,1722157840667,-500.0,0.00013698,2]
[333464804,1722157840677,-500.0,0.00013698,2]
[333464805,1722157840686,-600.0,0.00013698,2]
[333464806,1722157840695,-151.07741243,0.00013698,2]
[333464807,1722157840710,-238.52874643,0.00013698,2]
[333464808,1722157840719,-417.19163899,0.00013698,2]
[333464809,1722157840731,-84.05216007,0.00013698,2]
[333464810,1722157840741,-500.0,0.00013698,2]
[333464811,1722157840750,-500.0,0.00013698,2]
[333464812,1722157840760,-482.80309057,0.00013698,2]
[333464813,1722157840769,-501.0819928,0.00013698,2]
[333464814,1722157840778,-500.0,0.00013698,2]
[333464815,1722157840788,-500.0,0.00013698,2]
[333464816,1722157840797,-500.0,0.00013698,2]
[333464817,1722157840807,-501.86956202,0.00013698,2]
[333464818,1722157840817,-437.94005102,0.00013698,2]
[333464819,1722157840826,-500.0,0.00013698,2]
[333464820,1722157840836,-592.82290165,0.00013698,2]
[333464821,1722157840845,-500.0,0.00013698,2]
[333464822,1722157840856,-500.0,0.00013698,2]
[333464823,1722157840866,-504.60021453,0.00013698,2]
[333464824,1722157840875,-217.67033221,0.00013698,2]
[333464825,1722157840884,-371.84859748,0.00013698,2]
[333464826,1722157840897,-128.15140252,0.00013698,2]
[333464827,1722157840911,-500.0,0.00013698,2]
[333464828,1722157840922,-500.0,0.00013698,2]
[333464829,1722157840932,-500.0,0.00013698,2]
[333464830,1722157840944,-500.0,0.00013698,2]
[333464831,1722157840954,-500.0,0.00013698,2]
[333464832,1722157840964,-519.55300726,0.00013698,2]
[333464833,1722157840974,-34.88159208,0.00013698,2]
[333464834,1722157840987,-463.15224201,0.00013698,2]
[333464835,1722157840998,-506.28590501,0.00013698,2]
[333464836,1722157841009,-500.0,0.00013698,2]
[333464837,1722157841020,-1.68511375,0.00013698,2]
[333464846,1722157843121,-1392.61450584,0.0001338,2]
[333464847,1722157843133,-353.88549416,0.00013698,2]
[333464848,1722157843146,-144.42939209,0.00013698,2]
[333464849,1722157843158,-500.0,0.00013698,2]
[333464850,1722157843168,-146.84909681,0.00013698,2]
[333464851,1722157843400,-353.15090319,0.00013698,2]
[333464852,1722157843411,-500.0,0.00013698,2]
[333464853,1722157843422,-500.0,0.00013698,2]
[333464854,1722157843433,-502.27086054,0.00013698,2]
[333464855,1722157843445,-500.0,0.00013698,2]
[333464857,1722157843457,-512.50882319,0.00013698,2]
[333464858,1722157843469,-504.23031542,0.00013698,2]
[333464859,1722157843479,-500.0,0.00013698,2]
[333464860,1722157843489,-153.77303456,0.00013698,2]
[333464861,1722157843499,-500.0,0.00013698,2]
[333464862,1722157843510,-504.48395285,0.00013698,2]
[333464863,1722157843520,-264.94211025,0.00013698,2]
[333464905,1722157847545,273.37336231,9.9e-05,2]
[333464906,1722157855497,273.37336231,9.9e-05,2]
[333464907,1722157860000,164.24967346,0.0001212,2]
[333464908,1722157860821,154.88296144,0.0001212,2]
[333464909,1722157860909,6.18987648,0.0001212,2]
[333464910,1722157864915,273.37336231,9.9e-05,2]
[333464911,1722157873457,273.37336231,9.9e-05,2]
[333464912,1722157881900,273.37336231,9.9e-05,2]
[333464913,1722157889828,273.37336231,9.9e-05,2]
[333464914,1722157898957,273.37336231,9.9e-05,2]
[333464915,1722157907355,209.88578283,9.9e-05,2]
[333464916,1722157907891,182.9976024,9.999e-05,2]
[333464917,1722157917626,218.23037089,9.9e-05,2]
[333464918,1722157920365,12428.57945252,9.9e-05,2]
[333464919,1722157921290,161.3155078,9.9e-05,2]
[333464920,1722157922122,2107.28053433,9.9e-05,2]
[333464921,1722157922158,282.25280295,9.9e-05,2]
[333464922,1722157922238,434.6287768,9.999e-05,2]
[333464923,1722157924137,13996.08887813,9.9e-05,2]
[333464924,1722157925821,154.82754054,9.999e-05,2]
[333464925,1722157929439,794.02048447,9.999e-05,2]
[333464926,1722157933324,1626.2994868,9.9e-05,2]
[333464927,1722157937861,398.36350084,9.999e-05,2]
[333464928,1722157939736,4709.09482938,9.999e-05,2]
[333464929,1722157959415,273.37336231,9.9e-05,2]
[333464930,1722157968052,273.37336231,9.9e-05,2]
[333464931,1722157976156,222.91811574,9.9e-05,2]
[333464932,1722157996222,3782.59755445,9.9e-05,2]
[333464933,1722158010447,794.02048447,9.999e-05,2]
[333464934,1722158010894,182.9976024,9.999e-05,2]
[333464935,1722158012635,218.00151768,9.9e-05,2]
[333464936,1722158040933,182.9976024,9.999e-05,2]
[333464937,1722158043828,243.51848626,9.999e-05,2]
[333464938,1722158058337,415.23629123,9.9e-05,2]
[333464939,1722158109859,323.19444478,9.999e-05,2]
[333464940,1722158161947,182.9976024,9.999e-05,2]
[333464941,1722158247953,182.9976024,9.999e-05,2]
[333464942,1722158342944,318.86526453,9.999e-05,2]
[333464943,1722158839208,-199.1991553,0.00011871,2]
[333464944,1722158839235,-300.0,0.00012037,2]
[333464945,1722158839262,-174.52582352,0.00012038,2]
[333464950,1722158949163,-300.0,0.00012037,2]
[333464951,1722158949187,-200.0,0.00012038,2]
[333464952,1722158954134,-20520.6460902,0.00012038,2]
[333464953,1722158973114,-76.84906738,0.00012038,2]
[333465040,1722159038900,-188.445714,0.00012396,2]
[333465042,1722159038909,-188.445714,0.00012611,2]
[333465043,1722159038919,-188.445714,0.00012826,2]
[333465044,1722159038928,-188.445714,0.00013041,2]
[333465045,1722159038938,-43.38992158,0.00013246,2]
[333465046,1722159039426,-456.61007842,0.00013246,2]
[333465047,1722159039437,-192.404232,0.00013425,2]
[333465048,1722159039447,-5113.90024031,0.00013462,2]
[333465049,1722159039457,-365.62503774,0.00013516,2]
[333465050,1722159039467,-1218.53769261,0.00013588,2]
[333465051,1722159039477,-300.0,0.00013592,2]
[333465052,1722159039486,-4465.98399972,0.00013593,2]
[333465053,1722159039495,-141.98659,0.00013655,2]
[333465091,1722159040643,-322.22531119,0.00013655,2]
[333465092,1722159040653,-28265.6399869,0.00013678,2]
[333465093,1722159040663,-84796.9199606,0.00013688,2]
[333465094,1722159040673,-28265.6399869,0.00013691,2]
[333465095,1722159040683,-28265.6399869,0.00013691,2]
[333465096,1722159040692,-10567.21293444,0.00013698,5]
[333465097,1722159040703,-500.0,0.00013698,2]
[333465098,1722159040713,-500.0,0.00013698,2]
[333465099,1722159040724,-500.0,0.00013698,2]
[333465100,1722159040734,-500.0,0.00013698,2]
[333465101,1722159040744,-500.0,0.00013698,2]
[333465102,1722159040754,-500.0,0.00013698,2]
[333465103,1722159040764,-500.0,0.00013698,2]
[333465104,1722159040774,-516.97210084,0.00013698,2]
[333465105,1722159040784,-591.41151342,0.00013698,2]
[333465106,1722159040794,-500.0,0.00013698,2]
[333465107,1722159040804,-500.0,0.00013698,2]
[333465108,1722159040814,-500.0,0.00013698,2]
[333465109,1722159040825,-500.0,0.00013698,2]
[333465110,1722159040835,-500.0,0.00013698,2]
[333465111,1722159040844,-500.0,0.00013698,2]
[333465113,1722159040854,-500.0,0.00013698,2]
[333465114,1722159040865,-500.0,0.00013698,2]
[333465115,1722159040875,-500.0,0.00013698,2]
[333465116,1722159040885,-500.0,0.00013698,2]
[333465117,1722159040896,-500.0,0.00013698,2]
[333465118,1722159040910,-500.0,0.00013698,2]
[333465119,1722159040919,-500.0,0.00013698,2]
[333465120,1722159040929,-574.26793223,0.00013698,2]
[333465121,1722159040940,-507.57712413,0.00013698,2]
[333465122,1722159040951,-500.0,0.00013698,2]
[333465123,1722159040962,-502.8165754,0.00013698,2]
[333465124,1722159040972,-500.0,0.00013698,2]
[333465125,1722159040983,-502.23350402,0.00013698,2]
[333465126,1722159040992,-500.0,0.00013698,2]
[333465127,1722159041002,-624.92435556,0.00013698,2]
[333465128,1722159041012,-500.0,0.00013698,2]
[333465129,1722159041022,-500.0,0.00013698,2]
[333465130,1722159041035,-500.0,0.00013698,2]
[333465131,1722159041046,-500.0,0.00013698,2]
[333465132,1722159041057,-500.0,0.00013698,2]
[333465133,1722159041066,-500.0,0.00013698,2]
[333465134,1722159041079,-500.0,0.00013698,2]
[333465135,1722159041089,-500.0,0.00013698,2]
[333465136,1722159041100,-500.0,0.00013698,2]
[333465137,1722159041111,-513.43690189,0.00013698,2]
[333465138,1722159041121,-500.0,0.00013698,2]
[333465139,1722159041131,-151.0,0.00013698,2]
[333465140,1722159041141,-500.0,0.00013698,2]
[333465141,1722159041151,-526.13456709,0.00013698,2]
[333465142,1722159041160,-627.86,0.00013698,2]
[333465143,1722159041170,-151.0,0.00013698,2]
[333465144,1722159041179,-507.28872392,0.00013698,2]
[333465145,1722159041190,-500.0,0.00013698,2]
[333465146,1722159041200,-500.0,0.00013698,2]
[333465147,1722159041210,-500.0,0.00013698,2]
[333465148,1722159041220,-503.02095139,0.00013698,2]
[333465149,1722159041229,-500.0,0.00013698,2]
[333465150,1722159041238,-500.0,0.00013698,2]
[333465151,1722159041379,-500.0,0.00013698,2]
[333465152,1722159041389,-151.0,0.00013698,2]
[333465153,1722159041399,-500.81950541,0.00013698,2]
[333465154,1722159041408,-500.0,0.00013698,2]
[333465155,1722159041418,-506.19503965,0.00013698,2]
[333465156,1722159041427,-504.04531841,0.00013698,2]
[333465157,1722159041437,-500.0,0.00013698,2]
[333465158,1722159041447,-500.0,0.00013698,2]
[333465159,1722159041458,-500.0,0.00013698,2]
[333465160,1722159041469,-500.0,0.00013698,2]
[333465161,1722159041479,-500.0,0.00013698,2]
[333465162,1722159041489,-500.0,0.00013698,2]
[333465163,1722159041499,-500.0,0.00013698,2]
[333465164,1722159041510,-500.0,0.00013698,2]
[333465165,1722159041519,-500.0,0.00013698,2]
[333465166,1722159041531,-500.0,0.00013698,2]
[333465167,1722159041541,-500.0,0.00013698,2]
[333465168,1722159041551,-500.0,0.00013698,2]
[333465169,1722159041562,-500.0,0.00013698,2]
[333465170,1722159041571,-310.10141156,0.00013698,2]
[333465171,1722159041582,-500.0,0.00013698,2]
[333465172,1722159041592,-500.0,0.00013698,2]
[333465173,1722159041602,-500.0,0.00013698,2]
[333465174,1722159041612,-545.13303043,0.00013698,2]
[333465175,1722159041623,-500.0,0.00013698,2]
[333465176,1722159041633,-500.0,0.00013698,2]
[333465177,1722159041643,-500.0,0.00013698,2]
[333465178,1722159041653,-632.81387596,0.00013698,2]
[333465179,1722159041663,-503.1982018,0.00013698,2]
[333465180,1722159041673,-500.0,0.00013698,2]
[333465181,1722159041683,-500.0,0.00013698,2]
[333465182,1722159041692,-500.0,0.00013698,2]
[333465183,1722159041702,-500.0,0.00013698,2]
[333465184,1722159041712,-500.0,0.00013698,2]
[333465185,1722159041723,-500.0,0.00013698,2]
[333465186,1722159041733,-185.28048892,0.00013698,2]
[333465194,1722159043808,-314.71951108,0.00013698,2]
[333465195,1722159043819,-510.51566055,0.00013698,2]
[333465196,1722159043829,-500.0,0.00013698,2]
[333465197,1722159043839,-500.0,0.00013698,2]
[333465198,1722159043849,-500.0,0.00013698,2]
[333465199,1722159043859,-500.0,0.00013698,2]
[333465200,1722159043869,-504.88912628,0.00013698,2]
[333465201,1722159043879,-500.0,0.00013698,2]
[333465202,1722159043889,-500.0,0.00013698,2]
[333465203,1722159043899,-500.0,0.00013698,2]
[333465204,1722159043908,-500.0,0.00013698,2]
[333465205,1722159043918,-500.0,0.00013698,2]
[333465206,1722159043928,-500.0,0.00013698,2]
[333465207,1722159043938,-503.30146562,0.00013698,2]
[333465208,1722159043948,-615.59375833,0.00013698,2]
[333465209,1722159043958,-505.77711142,0.00013698,2]
[333465210,1722159043969,-500.0,0.00013698,2]
[333465211,1722159043979,-500.0,0.00013698,2]
[333465212,1722159043988,-85.38356634,0.00013698,2]
[333465224,1722159053987,273.37336231,9.9e-05,2]
[333465225,1722159061856,273.37336231,9.9e-05,2]
[333465226,1722159070949,273.37336231,9.9e-05,2]
[333465227,1722159072712,11.95698122,0.00012,2]
[333465230,1722159749361,242.0,0.0001,10]
[333465231,1722160035217,-658.92613553,9.509e-05,2]
[333465232,1722160035239,-658.92613553,9.999e-05,2]
[333465233,1722160035260,-300.0,9.999e-05,2]
[333465234,1722160035281,-300.0,9.999e-05,2]
[333465235,1722160035304,-422.39221032,0.0001,2]
[333465237,1722160154118,-1831.63473031,9.9e-05,2]
[333465238,1722160154140,-300.0,9.999e-05,2]
[333465239,1722160154161,-2301.31902222,0.0001,2]
[333465240,1722160154183,-4302.02066462,0.0001,2]
[333465241,1722160158139,-3189.4957745,0.0001,2]
[333465242,1722160158162,-200.0210096,0.00010065,2]
[333465243,1722160158186,-10777.29187287,0.00010113,2]
[333465244,1722160161288,-8236.17688823,0.00010113,2]
[333465245,1722160161309,-291.233672,0.00010131,2]
[333465246,1722160161334,-200.9545995,0.00010206,2]
[333465247,1722160161357,-201.850519,0.00010612,2]
[333465248,1722160161381,-201.850519,0.00010642,2]
[333465249,1722160161402,-200.5301057,0.0001067,2]
[333465250,1722160161430,-201.850519,0.00010671,2]
[333465251,1722160161453,-201.850519,0.000107,2]
[333465252,1722160161477,-201.850519,0.00010729,2]
[333465253,1722160161502,-201.850519,0.00010758,2]
[333465254,1722160161526,-201.850519,0.00010787,2]
[333465255,1722160161549,-201.850519,0.00010816,2]
[333465256,1722160161572,-201.850519,0.00010845,2]
[333465257,1722160161599,-201.850519,0.00010874,2]
[333465258,1722160161621,-201.850519,0.00010903,2]
[333465259,1722160161643,-201.850519,0.00010932,2]
[333465260,1722160161664,-166.666666,0.00010959,2]
[333465261,1722160161685,-167.42,0.00010959,2]